bitfinex/quotes_SOLUSD_20240705
["timestamp","ask_amount","ask_price","bid_price","bid_amount"]
[1720204718740,16.1582,135.23,135.2,7.3963]
[1720204719246,16.1582,135.23,135.21,7.3957]
[1720204719559,6.4293,135.26,135.23,7.3947]
[1720204719756,6.4293,135.26,135.15,22.7631]
[1720204719926,6.4293,135.26,135.21,7.3958]
[1720204720351,13.8226,135.26,135.2,7.3963]
[1720204720932,6.4293,135.26,135.21,7.3957]
[1720204721256,6.4293,135.26,135.22,7.3952]
[1720204721947,6.4293,135.26,135.23,7.3947]
[1720204722362,6.4293,135.26,135.16,0.17]
[1720204722549,6.4293,135.26,135.21,7.3958]
[1720204723860,6.4293,135.26,135.17,7.3976]
[1720204724058,20.17,135.25,135.12,100.0]
[1720204724562,7.3947,135.24,135.18,7.3973]
[1720204724760,7.3948,135.23,135.17,7.3979]
[1720204725257,27.5637,135.25,135.19,7.3969]
[1720204725576,7.3942,135.24,135.18,7.3974]
[1720204725751,20.17,135.25,135.19,7.3967]
[1720204726068,27.5637,135.25,135.19,7.3967]
[1720204726755,20.17,135.25,135.13,100.0]
[1720204726962,20.0,135.25,135.21,7.3957]
[1720204727164,20.0,135.25,135.2,7.3963]
[1720204728044,20.0,135.25,135.21,7.3958]
[1720204728463,27.3937,135.25,135.14,0.17]
[1720204728662,20.0,135.25,135.14,0.17]
[1720204728966,20.0,135.25,135.2,7.3959]
[1720204729751,20.0,135.25,135.21,7.3958]
[1720204729972,6.4293,135.26,135.23,7.3943]
[1720204730185,16.4311,135.27,135.17,100.0]
[1720204730366,16.4311,135.27,135.23,7.3946]
[1720204731975,7.3931,135.26,135.18,0.17]
[1720204732961,16.4311,135.27,135.17,7.398]
[1720204733173,7.395,135.23,135.17,7.398]
[1720204733475,20.17,135.26,135.16,7.3985]
[1720204733476,7.3954,135.22,135.16,7.3985]
[1720204733657,23.961,135.2,135.14,7.3994]
[1720204733858,23.961,135.2,135.15,7.3991]
[1720204734060,16.5645,135.2,135.15,7.3991]
[1720204735168,16.5645,135.2,135.17,7.398]
[1720204735487,16.5645,135.2,135.11,6.3153]
[1720204735676,16.5645,135.2,135.12,0.17]
[1720204735993,23.961,135.2,135.15,7.399]
[1720204736470,7.3993,135.15,135.11,0.1]
[1720204736669,16.5645,135.2,135.11,0.1]
[1720204736670,0.17,135.19,135.11,7.5008]
[1720204736879,27.567,135.19,135.11,0.1]
[1720204737782,33.17,135.18,135.13,7.3997]
[1720204737961,20.0,135.17,135.13,7.3997]
[1720204738279,20.0,135.17,135.11,0.1]
[1720204738465,27.3984,135.17,135.11,7.5012]
[1720204738668,7.3987,135.16,135.11,0.1]
[1720204738862,7.3992,135.15,135.11,0.1]
[1720204739081,7.3987,135.16,135.11,0.1]
[1720204739963,27.3982,135.17,135.11,7.5013]
[1720204740265,20.0,135.17,135.13,7.4002]
[1720204740473,53.17,135.18,135.11,0.1]
[1720204740978,0.17,135.17,135.11,0.1]
[1720204741152,33.17,135.16,135.11,0.1]
[1720204741355,40.5691,135.16,135.11,0.1]
[1720204741561,27.3993,135.15,135.11,0.1]
[1720204741966,40.5698,135.14,135.11,0.1]
[1720204742163,40.5708,135.12,135.11,0.1]
[1720204742384,33.17,135.12,135.11,0.1]
[1720204742680,53.17,135.12,135.11,0.1]
[1720204742876,60.7408,135.12,135.06,7.4039]
[1720204743652,22.9152,135.13,135.09,7.4021]
[1720204743857,22.9152,135.13,135.02,133.17]
[1720204744061,22.9152,135.13,135.03,0.17]
[1720204744366,22.9152,135.13,135.08,7.4024]
[1720204744775,22.9152,135.13,135.09,7.4023]
[1720204745054,22.9152,135.13,135.03,0.17]
[1720204745357,22.9152,135.13,135.06,7.4039]
[1720204745560,33.17,135.12,135.07,7.4034]
[1720204745761,33.17,135.12,135.05,7.4041]
[1720204745961,33.17,135.1,135.03,7.4052]
[1720204746162,20.0,135.09,135.03,7.4052]
[1720204747724,33.17,135.08,135.02,7.4061]
[1720204747895,33.17,135.08,135.03,7.4057]
[1720204748389,33.17,135.08,135.02,7.4061]
[1720204748988,33.17,135.08,135.01,7.5067]
[1720204749194,0.17,135.09,135.01,7.5067]
[1720204749195,39.454,135.06,135.01,0.1]
[1720204749369,46.8582,135.06,135.01,0.1]
[1720204749775,39.454,135.06,135.01,7.5067]
[1720204749979,39.454,135.06,135.01,0.1]
[1720204750503,39.454,135.06,135.01,7.5068]
[1720204750786,46.8584,135.06,135.01,0.1]
[1720204751183,40.5763,135.02,135.01,0.1]
[1720204751370,33.17,135.02,135.01,0.1]
[1720204753189,33.34,135.02,135.01,0.1]
[1720204753499,33.34,135.02,134.98,0.8762015]
[1720204753500,7.4075,135.0,134.98,0.8762015]
[1720204753801,33.17,134.99,134.98,0.8762015]
[1720204753980,40.5779,134.99,134.98,0.8762015]
[1720204754178,33.17,134.99,134.98,0.8762015]
[1720204755801,59.9081,134.99,134.98,0.8762015]
[1720204756012,67.316,134.99,134.98,0.8762015]
[1720204756199,7.4088,134.98,134.91,0.1]
[1720204756391,33.34,134.97,134.91,0.1]
[1720204756705,33.34,134.97,134.91,7.5118]
[1720204757107,40.7491,134.97,134.91,7.5118]
[1720204757480,40.7491,134.97,134.91,0.1]
[1720204757908,33.17,134.97,134.91,0.1]
[1720204758405,39.7381,134.99,134.97,7.4088]
[1720204758704,39.7381,134.99,134.96,7.4094]
[1720204759078,39.7381,134.99,134.95,7.41]
[1720204759494,48.7762,135.01,134.96,7.4095]
[1720204759698,48.7762,135.01,134.97,7.4089]
[1720204759890,48.7762,135.01,134.98,7.4085]
[1720204760093,48.7762,135.01,134.91,0.1]
[1720204760610,7.4074,135.0,134.91,0.1]
[1720204760815,7.4074,135.0,134.94,7.4103]
[1720204761512,48.7762,135.01,134.96,7.4094]
[1720204761718,20.0,135.0,134.97,7.409]
[1720204762285,48.7762,135.01,134.99,7.4075]
[1720204762487,15.6062,135.01,134.91,0.1]
[1720204762693,7.4077,135.0,134.94,7.4105]
[1720204763314,7.408,134.99,134.93,7.411]
[1720204763490,7.4075,135.0,134.94,7.4106]
[1720204763685,33.17,134.99,134.94,7.4106]
[1720204763882,15.6062,135.01,134.97,7.4088]
[1720204764084,20.0,135.0,134.98,7.4084]
[1720204764309,15.6062,135.01,134.98,7.4084]
[1720204764514,23.013,135.01,134.95,7.4099]
[1720204764993,7.4074,135.0,134.95,7.4099]
[1720204765588,7.4074,135.0,134.91,16.2346]
[1720204765589,15.6062,135.01,134.96,7.4093]
[1720204766294,23.0131,135.01,134.95,7.4099]
[1720204766812,40.5775,135.0,134.94,7.4105]
[1720204767118,33.17,135.0,134.91,0.1]
[1720204767303,33.17,135.0,134.96,7.4091]
[1720204767889,33.17,135.0,134.91,0.1]
[1720204768101,40.5778,135.0,134.94,7.4105]
[1720204768424,20.17,134.99,134.91,0.1]
[1720204768594,27.5783,134.99,134.93,7.4111]
[1720204768916,7.4093,134.97,134.91,0.1]
[1720204769399,7.5796,134.96,134.91,0.1]
[1720204769597,40.7496,134.96,134.91,0.1]
[1720204770291,7.4102,134.95,134.91,0.1]
[1720204770518,33.34,134.96,134.91,0.1]
[1720204770519,15.9094,134.94,134.91,0.1]
[1720204770826,62.7379,134.94,134.91,0.1]
[1720204771509,55.3271,134.94,134.91,0.1]
[1720204772914,55.3271,134.94,134.91,7.5123]
[1720204773119,22.1571,134.94,134.91,7.5123]
[1720204773286,22.1571,134.94,134.91,0.1]
[1720204773491,29.5678,134.94,134.91,0.1]
[1720204774523,22.1571,134.94,134.91,0.1]
[1720204774826,29.5679,134.94,134.91,0.1]
[1720204775026,22.1571,134.94,134.91,0.1]
[1720204776094,62.738,134.94,134.91,0.1]
[1720204776299,7.4112,134.93,134.91,0.1]
[1720204776519,62.7379,134.94,134.91,0.1]
[1720204778904,55.3271,134.94,134.91,0.1]
[1720204780740,0.17,134.96,134.92,7.4114]
[1720204780741,33.17,134.96,134.92,7.4114]
[1720204781106,33.17,134.96,134.91,7.5122]
[1720204782016,33.17,134.96,134.92,7.4117]
[1720204782214,16.0539,134.97,134.94,7.4106]
[1720204782623,16.0539,134.97,134.92,7.4116]
[1720204783215,16.0539,134.97,134.91,0.1]
[1720204783412,56.6333,134.97,134.91,7.5122]
[1720204783617,7.4099,134.96,134.91,0.1]
[1720204784737,7.4101,134.95,134.91,0.1]
[1720204785035,7.4097,134.96,134.91,7.5122]
[1720204785246,56.8031,134.97,134.91,7.5122]
[1720204785430,0.17,134.96,134.91,7.5122]
[1720204786018,27.5796,134.96,134.91,0.1]
[1720204786335,40.5803,134.95,134.91,0.1]
[1720204786532,33.17,134.95,134.91,0.1]
[1720204786732,7.4109,134.94,134.91,0.1]
[1720204788611,40.5803,134.95,134.91,0.1]
[1720204788810,33.17,134.95,134.91,0.1]
[1720204789825,0.17,134.94,134.91,0.1]
[1720204790425,7.5807,134.94,134.91,0.1]
[1720204791643,7.4117,134.92,134.91,0.1]
[1720204791834,53.17,134.93,134.91,0.1]
[1720204792159,60.5813,134.93,134.91,0.1]
[1720204792660,53.17,134.93,134.91,0.1]
[1720204794838,60.5813,134.93,134.91,0.1]
[1720204796541,20.0,134.93,134.91,0.1]
[1720204796739,20.17,134.94,134.91,0.1]
[1720204797038,7.4113,134.93,134.91,0.1]
[1720204797631,27.581,134.94,134.91,0.1]
[1720204797834,33.17,134.93,134.91,0.1]
[1720204798034,40.5814,134.93,134.91,0.1]
[1720204798340,7.4117,134.92,134.91,0.1]
[1720204798547,33.17,134.93,134.82,16.1445]
[1720204798728,40.5824,134.91,134.82,16.1445]
[1720204799047,40.5824,134.91,134.86,7.415]
[1720204799245,33.17,134.91,134.86,7.415]
[1720204799425,33.17,134.91,134.86,7.4149]
[1720204800324,33.17,134.89,134.84,0.8762015]
[1720204800530,36.2188,134.9,134.86,7.4146]
[1720204800750,36.2188,134.9,134.87,7.4143]
[1720204800933,36.2188,134.9,134.86,7.4149]
[1720204801134,36.2188,134.9,134.88,7.4139]
[1720204801319,16.2188,134.97,134.92,7.4112]
[1720204801522,33.17,134.96,134.91,7.412]
[1720204801832,33.17,134.96,134.85,22.5892]
[1720204802040,33.17,134.96,134.91,7.4119]
[1720204802422,40.58,134.96,134.9,7.4128]
[1720204802619,33.17,134.96,134.85,22.5892]
[1720204802847,40.5811,134.94,134.88,7.4139]
[1720204803543,40.5811,134.94,134.89,7.4133]
[1720204804259,33.17,134.94,134.9,7.4128]
[1720204804552,16.2188,134.97,134.85,22.5892]
[1720204804747,16.2188,134.97,134.94,7.4103]
[1720204805123,16.2188,134.97,134.86,0.17]
[1720204805124,40.90251419,134.98,134.86,0.17]
[1720204805341,40.90251419,134.98,134.93,7.4111]
[1720204805342,33.17,134.98,134.93,7.4111]
[1720204806118,7.72819186,134.99,134.94,7.4106]
[1720204806925,15.13609186,134.99,134.93,7.411]
[1720204807149,7.4085,134.98,134.93,7.411]
[1720204807338,7.4085,134.98,134.92,7.4116]
[1720204807758,40.5785,134.98,134.92,7.4116]
[1720204808228,7.4097,134.96,134.9,7.4127]
[1720204808423,7.4097,134.96,134.88,6.2656]
[1720204808424,0.17,134.95,134.88,6.2656]
[1720204808729,20.17,134.95,134.88,6.2656]
[1720204808941,27.5803,134.95,134.89,7.4132]
[1720204809340,7.4109,134.94,134.88,13.6795]
[1720204809537,40.5809,134.94,134.88,7.4139]
[1720204810452,7.5813,134.93,134.87,7.4144]
[1720204810636,0.17,134.93,134.88,7.4138]
[1720204810845,0.17,134.93,134.89,7.4133]
[1720204811462,0.17,134.93,134.88,7.4138]
[1720204812247,33.17,134.92,134.85,16.3351]
[1720204812455,33.17,134.92,134.87,7.4143]
[1720204812667,33.17,134.92,134.88,7.4139]
[1720204812959,27.5812,134.93,134.85,16.3351]
[1720204812960,20.0,134.93,134.85,16.3351]
[1720204813155,33.17,134.98,134.85,116.3351]
[1720204813458,33.17,134.98,134.95,7.4101]
[1720204813638,7.72819186,134.99,134.98,7.4085]
[1720204813844,33.17,135.05,134.96,6.4314]
[1720204814236,11.70758056,135.08,134.96,6.4314]
[1720204814237,33.17,135.07,134.96,6.4314]
[1720204814429,40.5737,135.07,135.01,7.4066]
[1720204814649,40.5737,135.07,135.0,7.4069]
[1720204815265,20.0,135.06,135.0,7.4069]
[1720204815451,20.0,135.06,135.01,7.4067]
[1720204816063,40.5737,135.07,135.01,7.4067]
[1720204816245,33.17,135.07,135.02,7.4062]
[1720204817140,33.17,135.07,135.01,7.4067]
[1720204817760,20.0,135.06,135.02,7.4061]
[1720204817963,20.0,135.07,135.01,7.4068]
[1720204818344,20.0,135.07,135.0,7.4072]
[1720204818655,20.0,135.07,134.96,6.4314]
[1720204818656,7.4042,135.06,134.99,7.4079]
[1720204818861,20.0,135.05,134.96,6.4314]
[1720204819168,7.72288306,135.09,134.99,100.0]
[1720204819331,48.344,135.14,135.03,6.3611]
[1720204819537,33.17,135.14,135.03,22.7945]
[1720204819752,33.17,135.14,135.04,0.17]
[1720204819960,7.4003,135.13,135.07,7.4034]
[1720204820131,33.17,135.14,135.08,7.4027]
[1720204820332,7.4003,135.13,135.07,7.4034]
[1720204820640,7.4008,135.12,135.06,7.4039]
[1720204820838,7.4009,135.12,135.03,22.7945]
[1720204821056,33.17,135.12,135.03,6.3611]
[1720204821249,7.4029,135.09,135.03,13.7667]
[1720204821453,54.9997,135.1,135.03,7.4057]
[1720204821643,7.4029,135.09,134.99,22.8891]
[1720204821959,7.403,135.08,135.02,7.4062]
[1720204822148,7.4026,135.09,135.02,7.4062]
[1720204822354,20.0,135.08,135.03,7.4056]
[1720204822667,27.403,135.08,135.02,7.4062]
[1720204823238,7.4036,135.07,134.99,22.8891]
[1720204823439,0.17,135.07,135.02,7.4061]
[1720204824132,20.0,135.08,134.99,22.8891]
[1720204824333,7.4041,135.06,135.0,7.4072]
[1720204824567,7.4052,135.04,134.98,7.4081]
[1720204824858,7.4047,135.05,134.99,7.4078]
[1720204825067,7.4052,135.04,134.96,6.3751]
[1720204825441,7.4046,135.06,134.96,6.3751]
[1720204825653,20.17,135.05,135.0,7.4074]
[1720204826167,20.0,135.05,134.96,6.3751]
[1720204826372,20.0,135.08,134.96,6.3751]
[1720204826666,20.0,135.08,135.02,7.4062]
[1720204826667,0.17,135.07,135.02,7.4062]
[1720204827243,37.37,135.09,134.96,6.3751]
[1720204827473,7.4003,135.13,135.07,7.4034]
[1720204827641,21.555,135.14,135.09,7.402]
[1720204827841,2.9312856,135.13,135.09,7.402]
[1720204828457,28.9548,135.14,135.08,7.4029]
[1720204828763,7.7229301,135.16,135.05,100.0]
[1720204829059,16.246,135.19,135.15,7.399]
[1720204829445,0.1,135.19,135.07,100.0]
[1720204829647,0.1,135.19,135.16,7.3985]
[1720204829845,0.1,135.19,135.08,0.17]
[1720204830251,0.1,135.19,135.08,100.17]
[1720204830557,0.1,135.19,135.17,7.398]
[1720204830746,0.1,135.19,135.16,7.3985]
[1720204830947,0.1,135.19,135.08,0.17]
[1720204831162,0.1,135.19,135.12,7.4006]
[1720204831466,0.1,135.19,135.1,7.4015]
[1720204832042,0.1,135.19,135.08,7.4029]
[1720204832251,7.3986,135.16,135.09,7.4021]
[1720204832464,20.0,135.15,135.1,7.4018]
[1720204832644,20.0,135.15,135.12,7.4008]
[1720204832843,7.6671,135.19,135.12,7.4008]
[1720204833053,7.3975,135.18,135.11,7.4012]
[1720204833268,20.0,135.17,135.11,7.4012]
[1720204833856,7.3976,135.18,135.11,7.4012]
[1720204834085,20.0,135.17,135.11,7.4012]
[1720204834762,20.0,135.17,135.12,7.4008]
[1720204835668,0.1,135.19,135.1,100.0]
[1720204835857,0.1,135.19,135.16,7.3984]
[1720204836058,0.1,135.19,135.15,7.399]
[1720204836462,0.1,135.19,135.14,7.3995]
[1720204836654,0.1,135.19,135.13,7.4001]
[1720204837266,0.1,135.19,135.05,255.0]
[1720204837767,7.3982,135.17,135.11,7.4013]
[1720204838567,0.1,135.19,135.05,355.0]
[1720204838768,0.1,135.19,135.06,0.17]
[1720204839087,7.3979,135.18,135.12,7.4008]
[1720204839381,7.3982,135.17,135.11,7.4011]
[1720204839890,7.3977,135.18,135.12,7.4004]
[1720204840089,18.4978,135.16,135.05,255.0]
[1720204840263,0.17,135.17,135.04,6.57]
[1720204840460,20.17,135.18,135.04,6.57]
[1720204840881,7.4001,135.14,135.08,7.4029]
[1720204841963,7.3984,135.17,135.1,7.4015]
[1720204842163,7.8200527,135.19,135.09,0.17]
[1720204842383,0.1,135.19,135.09,0.17]
[1720204842568,0.1,135.19,135.13,7.3998]
[1720204842768,7.4971,135.19,135.13,7.3998]
[1720204843856,0.1,135.19,135.14,7.3996]
[1720204844167,20.1,135.19,135.14,7.3996]
[1720204844368,20.1,135.19,135.09,0.17]
[1720204844369,27.4971,135.19,135.13,7.4002]
[1720204844587,18.4944,135.18,135.04,6.57]
[1720204844797,7.3992,135.15,135.09,7.4024]
[1720204845264,20.17,135.17,135.04,6.57]
[1720204845963,7.3987,135.16,135.1,7.4018]
[1720204846158,27.3992,135.15,135.09,7.4022]
[1720204847497,27.3992,135.15,135.1,7.4018]
[1720204847786,20.0,135.15,135.1,7.4018]
[1720204848962,20.0,135.16,135.05,100.0]
[1720204849195,7.497,135.19,135.06,0.17]
[1720204849384,0.1,135.19,135.14,7.3991]
[1720204849867,7.4971,135.19,135.13,7.4001]
[1720204850979,0.1,135.19,135.14,7.3996]
[1720204851181,20.1,135.19,135.14,7.3996]
[1720204851585,20.1,135.19,135.06,0.17]
[1720204851768,7.3977,135.18,135.13,7.4002]
[1720204851967,27.4971,135.19,135.13,7.4002]
[1720204852189,20.1,135.19,135.14,7.3992]
[1720204852575,7.3996,135.15,135.09,7.4023]
[1720204852785,7.399,135.16,135.1,7.4018]
[1720204853085,7.3992,135.15,135.04,6.57]
[1720204853466,7.3992,135.15,135.09,7.4021]
[1720204853797,7.4,135.14,135.04,6.57]
[1720204853962,7.3995,135.15,135.09,7.4024]
[1720204855094,7.3987,135.16,135.1,7.4017]
[1720204855404,20.17,135.15,135.04,6.57]
[1720204855693,7.4004,135.13,135.06,7.4037]
[1720204856496,7.4004,135.13,135.07,7.4034]
[1720204860309,7.4004,135.13,135.04,6.57]
[1720204860310,7.4004,135.13,135.06,7.4039]
[1720204860596,6.5793,135.13,135.0,6.4382]
[1720204860808,20.17,135.12,135.0,6.4382]
[1720204861095,7.4034,135.08,135.02,7.4059]
[1720204861295,38.6721,135.12,134.97,6.4382]
[1720204861296,36.0324,135.07,134.97,6.4382]
[1720204861465,16.0324,135.07,134.97,6.4382]
[1720204861672,20.0,135.06,134.97,6.4382]
[1720204862368,7.4046,135.05,134.99,7.4075]
[1720204862880,7.4052,135.04,134.97,7.4085]
[1720204863203,20.0,135.03,134.96,7.4091]
[1720204863408,15.2786,135.01,134.95,7.4099]
[1720204863590,22.6855,135.01,134.95,7.4099]
[1720204864096,15.2786,135.01,134.96,7.4095]
[1720204864290,22.6855,135.01,134.95,7.4101]
[1720204864600,7.4076,135.0,134.93,7.4108]
[1720204864807,0.17,134.99,134.93,7.4108]
[1720204865323,0.17,134.99,134.94,7.4105]
[1720204866001,6.4178,135.0,134.97,7.409]
[1720204866374,6.4178,135.0,134.98,7.4083]
[1720204866700,15.2786,135.01,134.98,7.4083]
[1720204866903,15.2786,135.01,134.96,7.4094]
[1720204867109,22.6856,135.01,134.95,7.4099]
[1720204867401,15.2786,135.01,134.88,262.72918796]
[1720204867580,22.6858,135.01,134.95,7.41]
[1720204867779,27.5775,135.0,134.94,7.4102]
[1720204868803,27.5775,135.0,134.93,7.4108]
[1720204868804,7.408,134.99,134.93,7.4108]
[1720204869099,6.4997,135.03,134.92,100.0]
[1720204869404,6.4997,135.03,134.93,0.17]
[1720204869575,16.3306,135.05,134.93,0.17]
[1720204869576,16.3306,135.05,135.02,7.4059]
[1720204869908,16.3306,135.05,134.93,0.17]
[1720204869909,16.3306,135.05,135.01,7.4066]
[1720204870402,16.3306,135.05,135.0,7.4073]
[1720204871483,16.3306,135.05,134.94,100.0]
[1720204871711,16.3306,135.05,134.95,0.17]
[1720204872037,16.3306,135.05,135.01,7.4067]
[1720204872205,16.3306,135.05,134.95,0.17]
[1720204872402,16.3306,135.05,135.04,7.4052]
[1720204872905,6.456,135.08,135.04,7.4052]
[1720204873512,13.859,135.08,135.02,7.4061]
[1720204873717,6.456,135.08,134.95,0.17]
[1720204873932,7.72602081,135.1,135.09,7.4024]
[1720204874104,21.4797,135.13,135.0,144.54]
[1720204874300,21.4797,135.13,135.01,0.17]
[1720204874503,21.4797,135.13,135.08,7.4024]
[1720204874730,21.4797,135.13,135.09,7.4024]
[1720204875600,21.4797,135.13,135.07,7.4034]
[1720204875824,28.8804,135.13,135.01,0.17]
[1720204876029,21.4797,135.13,135.07,7.4034]
[1720204876608,21.4797,135.13,135.08,7.4028]
[1720204876832,21.4797,135.13,135.09,7.4024]
[1720204877136,21.4797,135.13,135.1,7.4018]
[1720204877329,21.4797,135.13,135.09,7.4024]
[1720204878212,15.0273,135.13,135.04,100.0]
[1720204878413,15.0273,135.13,135.12,7.4008]
[1720204878733,15.0273,135.13,135.11,7.4013]
[1720204878933,15.0273,135.13,135.1,7.4017]
[1720204879731,15.0273,135.13,135.09,7.402]
[1720204880434,15.0273,135.13,135.05,0.17]
[1720204880435,15.0273,135.13,135.07,7.4034]
[1720204880805,15.0273,135.13,135.08,7.4028]
[1720204881226,15.0273,135.13,135.05,0.17]
[1720204881413,15.0273,135.13,135.11,7.4013]
[1720204881813,15.0273,135.13,135.1,7.4017]
[1720204884313,15.0273,135.13,135.05,0.17]
[1720204884525,15.0273,135.13,135.09,7.4023]
[1720204884912,15.0273,135.13,135.1,7.4018]
[1720204887202,15.0273,135.13,135.11,7.4013]
[1720204887743,15.0273,135.13,135.1,7.4017]
[1720204888238,15.0273,135.13,135.09,7.4023]
[1720204888611,15.0273,135.13,135.11,7.401]
[1720204891010,15.0273,135.13,135.1,7.4019]
[1720204891238,15.0273,135.13,135.09,7.4022]
[1720204891540,15.0273,135.13,134.99,105.63833306]
[1720204891744,6.4453,135.1,134.99,6.5157]
[1720204891948,7.4031,135.08,135.02,7.4062]
[1720204892243,6.4453,135.1,135.01,7.4063]
[1720204892244,7.4036,135.07,135.01,7.4063]
[1720204892538,7.4031,135.08,135.02,7.4062]
[1720204893117,7.4057,135.04,134.93,255.0]
[1720204893334,15.145,135.07,134.91,28.20241073]
[1720204893537,20.17,135.06,134.97,7.409]
[1720204893739,20.17,135.06,134.96,7.4093]
[1720204894644,6.034,135.05,134.96,7.4093]
[1720204894952,7.4062,135.03,134.96,7.4093]
[1720204895128,0.17,135.02,134.96,7.4093]
[1720204895449,7.5764,135.02,134.96,7.4093]
[1720204895642,7.4069,135.01,134.94,7.4105]
[1720204895950,20.0,135.01,134.94,7.4102]
[1720204896119,27.4068,135.01,134.94,7.4102]
[1720204896523,27.4068,135.01,134.95,7.41]
[1720204896947,20.0,135.01,134.95,7.41]
[1720204897323,16.6508,135.0,134.87,274.70383741]
[1720204897657,26.6526,134.99,134.92,7.4117]
[1720204897827,0.17,134.98,134.92,7.4117]
[1720204898443,7.5785,134.98,134.92,7.4117]
[1720204898648,7.5785,134.98,134.91,7.4122]
[1720204898649,27.409,134.97,134.91,7.4122]
[1720204898956,0.17,134.96,134.91,7.4122]
[1720204900830,0.17,134.96,134.9,7.4127]
[1720204901035,7.5797,134.96,134.89,7.4132]
[1720204901257,27.4102,134.95,134.89,7.4132]
[1720204901427,7.4107,134.94,134.88,7.4139]
[1720204901632,15.1364,134.93,134.88,7.4139]
[1720204902537,15.1364,134.93,134.84,0.8762015]
[1720204902873,26.7555,134.92,134.84,0.8762015]
[1720204903055,34.1675,134.92,134.84,0.8762015]
[1720204903853,34.1675,134.92,134.86,7.4147]
[1720204904849,26.7555,134.92,134.86,7.4147]
[1720204905054,34.1675,134.92,134.86,7.4149]
[1720204905260,26.7555,134.92,134.84,0.8762015]
[1720204906151,7.4136,134.89,134.84,0.8762015]
[1720204906350,20.0,134.88,134.84,0.8762015]
[1720204906661,0.17,134.9,134.85,7.4154]
[1720204906952,20.17,134.9,134.84,8.2923015]
[1720204907155,7.583,134.9,134.84,8.2923015]
[1720204907457,7.583,134.9,134.84,0.8762015]
[1720204907458,7.4145,134.87,134.84,0.8762015]
[1720204908448,7.5841,134.88,134.84,0.8762015]
[1720204908635,20.0,134.87,134.84,0.8762015]
[1720204909859,20.0,134.87,134.84,8.2923015]
[1720204910261,20.0,134.87,134.84,0.8762015]
[1720204911156,20.0,134.87,134.85,7.4156]
[1720204911356,20.0,134.87,134.84,0.8762015]
[1720204911357,20.0,134.87,134.84,8.2918015]
[1720204911665,27.4134,134.89,134.84,0.8762015]
[1720204911874,20.0,134.89,134.84,0.8762015]
[1720204912157,7.4145,134.87,134.84,0.8762015]
[1720204912539,0.17,134.88,134.84,0.8762015]
[1720204912540,7.5841,134.88,134.84,0.8762015]
[1720204912739,20.0,134.87,134.84,0.8762015]
[1720204914239,27.584,134.88,134.84,0.8762015]
[1720204914970,20.17,134.88,134.84,0.8762015]
[1720204915259,27.584,134.88,134.84,0.8762015]
[1720204915564,16.1522,134.87,134.84,0.8762015]
[1720204915761,20.17,134.86,134.84,0.8762015]
[1720204918165,14.0479,134.85,134.81,0.1]